{"text_format":"1","workbook":"xlsx","n_sheets":2,"sheets":["Données_BP","Note_explicative_BP"],"not_rendered":{"charts":0,"images":2,"macros":1,"external_links":0,"defined_names":1,"comments":0,"pivot_tables":0},"unopened":[],"bounds":{"document_bytes":16777216,"sheet_cells":100000,"rows_first":2000,"rows_last":500,"rows_between":2000,"halvings":0,"cell_chars":16384,"cell_head_chars":4096},"cells_cut":0,"cells_raw":0,"read":"whole","date_system":"1900"}

{"sheet":"Données_BP","index":0,"n_rows":124,"n_cols":27,"rows_kept":124,"cut":false,"hidden":false,"merged":[[51,0,51,2],[116,0,116,6],[109,0,109,6],[103,0,103,6],[10,0,10,6],[11,0,11,1],[63,3,63,5],[63,0,63,2],[76,0,76,2],[76,3,76,5],[74,0,74,6],[101,0,101,6],[49,0,49,2],[58,3,58,6],[58,0,58,2]]}
[]
["Porteur de projet","Version vF"]
["Nom du projet","Version vF"]
["Capacité injection gaz conforme",500]
["CAPEX",{"$f":"D50","v":23850000}]
["TRI projet cible",0.08,"*Après impôts et inflation"]
["Prix du méthane de synthèse cible",100,"*PCS"]
[]
[null,"Cellules à renseigner"]
[]
["Ventilation des CAPEX "]
["Poste",null,"Définition","Prix en € HT",null,null,null,"ANNEE 1","ANNEE 2","ANNEE 3","ANNEE 4","ANNEE 5","ANNEE 6","ANNEE 7","ANNEE 8","ANNEE 9","ANNEE 10","ANNEE 11","ANNEE 12","ANNEE 13","ANNEE 14","ANNEE 15","ANNEE 16","ANNEE 17","ANNEE 18","ANNEE 19","ANNEE 20"]
["Poste A","Aménagement du site",null,{"$f":"SUM(D14:D18)","v":450000},{"$f":"D13/$D$50","v":1.8867924528301886E-2}]
["A1","Foncier","Prix d'achat de la parcelle imputé au projet le cas échéant. Si location renseigner le poste CF4 en OPEX",150000]
["A2","VRD","Frais de viabilisation, terrassement, réseaux (élec, gaz, …), etc.",50000]
["A3","Génie Civil","Coûts des infrastrutures et ouvrages (bâtiment, dalle béton, pont de levage, etc.)",150000]
["A4","Utilités","Coût d'accès utilités existantes sur site + l'éventuel rajout d'utilités manquantes",100000]
["A5","Autres","Préciser ici",0]
["Poste B","Brique Gestion des intrants (prétraitement pour assurer une homogéinité constante + capacité de stockage tampon a minima des intrants)",null,{"$f":"SUM(D20:D22)","v":300000},{"$f":"D19/$D$50","v":1.2578616352201259E-2},null,null,{"$f":"SUM(H20:H22)","v":0},{"$f":"SUM(I20:I22)","v":0},0,0,0,0,0,0,0,0,0,0,0,0,0,0,0,0,0,0]
["B1","Préparation de l'intrant","Equipements de séchage, broyage, criblage, dilution, tri, mélange, etc.",200000]
["B2","Stockage et convoyage","Equipements de stockage (autres que Génie Civil) des intrants, chargeuses, etc.",100000]
["B3","Autres","Préciser ici",0]
["Poste C","Brique Process GH HP (allant de la pompe HP jusqu'au séparateur de phases et intégrant la production/ fourniture de l'apport thermique pour le process)",null,{"$f":"SUM(D24:D29)","v":15250000},{"$f":"D23/$D$50","v":0.63941299790356398},null,null,{"$f":"SUM(H24:H29)","v":0},{"$f":"SUM(I24:I29)","v":0},0,0,0,0,0,0,0,0,0,0,0,0,0,0,0,0,0,0]
["C1","Equipements principaux","Echangeurs de chaleur, séparateur de sels, réacteur GH, séparteur de phases, système de fourniture thermique, réfroidisseur, …",10000000]
["C2","Système de pompage","Equipements de pompage HP du déchet (un éventuel préchauffage du déchet en amont est à intégrer ici)",1500000]
["C3","Utilités","Equipements liés au besoin thermique (chauffage + éventuellement refroidissement) du process",1000000]
["C4","Robinetterie/ tuyauterie + supportage/ chassis + autres","Equipements mécaniques (vannes, robinets, piping, chassis, passerelles, …)",1500000]
["C5","EIA","Equipements électricité, contrôle, commande (instrumentation, matériel, logiciel, variateurs, lot électricité) ",750000]
["C6","Etudes, fabrication, montage et mise en service (MES)","Etudes de détail, achat, fabrication, fourniture et montage sur site + MES",500000]
["Poste D","Brique Process Traitement de syngaz (produisant un méthane de synthèse injectable en sortie)",null,{"$f":"SUM(D31:D34)","v":3750000},{"$f":"D30/$D$50","v":0.15723270440251572},null,null,{"$f":"SUM(H31:H34)","v":0},{"$f":"SUM(I31:I34)","v":0},0,0,0,0,0,0,0,0,0,0,0,0,0,0,0,0,0,0]
["D1","Unité de prétraitement du syngaz (si besoin)","Equipements de prétraitement du syngaz avant méthanation (H2S) ou épuration (en fonction de la GH à catalyse ou à HT) ",1000000]
["D2","Unité de méthanation (si GH à HT)","Equipements d'enrichissement du syngaz en CH4 + de séchage du gaz en sortie",1500000]
["D3","Unité d'épuration/ de purification","Equipements de mise aux spécifications du gaz au réseau (ex. séparation CO2, H2, etc.)",1000000]
["D4","Etudes, montage et mise en service","Etudes de détail, achat, fabrication, fourniture et montage sur site + MES",250000]
["Poste E","Briques Périphériques (nécessaires à l'intégration de toutes les briques et à celles en aval de la brique procédé GH)",null,{"$f":"SUM(D36:D41)","v":2500000},{"$f":"D35/$D$50","v":0.10482180293501048},null,null,{"$f":"SUM(H37:H41)","v":0},{"$f":"SUM(I37:I41)","v":0},{"$f":"SUM(J37:J41)","v":0},{"$f":"SUM(K37:K41)","v":0},{"$f":"SUM(L37:L41)","v":0},{"$f":"SUM(M37:M41)","v":0},{"$f":"SUM(N37:N41)","v":0},{"$f":"SUM(O37:O41)","v":0},{"$f":"SUM(P37:P41)","v":0},{"$f":"SUM(Q37:Q41)","v":0},{"$f":"SUM(R37:R41)","v":0},{"$f":"SUM(S37:S41)","v":0},{"$f":"SUM(T37:T41)","v":0},{"$f":"SUM(U37:U41)","v":0},{"$f":"SUM(V37:V41)","v":0},{"$f":"SUM(W37:W41)","v":0},{"$f":"SUM(X37:X41)","v":0},{"$f":"SUM(Y37:Y41)","v":0},{"$f":"SUM(Z37:Z41)","v":0},{"$f":"SUM(AA37:AA41)","v":0}]
["E1","Intégration globale (tuyauterie, EIA, ...)","Coûts de piping, montage, infrastructure de communication (automatismes, IT) mise en service non inclus dans les postes B, C et D, et en aval (jusqu'au poste d'injection réseau et les stockages tampon des sortants)",200000]
["E2","Sécurité gaz","Equipements nécessaires à la sécurité de l'installation non inclus dans les postes C et D et leur périphérie\n(Torche, système de mis en sécurité gaz de l'installation GH, détection incendie, détection gaz, etc.)",500000]
["E3","Process auxiliaires (en amont du stockage CO2 et H2)","Equipements auxiliaires nécessaire au bon fonctionnement et non inclus dans le poste C et D\n(Ex : Liquéfaction du CO2, compression H2 à 350 bar (optionnel), etc.)",1000000]
["E4","Stockages tampon des sortants","Equipements nécessaires au stockage temporaire (+/- longtemps en fonction) des sortants solides, liquides et gazeux",500000]
["E5","Injection réseau (coût fourni par l'opérateur de réseau)","Equipements nécessaires à l'injection dans le réseau (raccordement au réseau gaz, poste d'injection, etc.). Indiquer ici le coût global, hors réfaction éventuelle.",300000]
["E6","Autres","Préciser ici ",0]
["Poste F","Pilotage global du projet (de la phase étude jusqu'à la mise en service) assuré par un intégrateur",null,{"$f":"SUM(D43:D46)","v":1100000},{"$f":"D42/$D$50","v":4.6121593291404611E-2},null,null,{"$f":"SUM(H43:H46)","v":0},{"$f":"SUM(I43:I46)","v":0},0,0,0,0,0,0,0,0,0,0,0,0,0,0,0,0,0,0]
["F1","Maîtrise d'Œuvre globale (personnel équipes BE)","Pilotage projet global, études d'intégration, achat équipements et travaux, supervision chantier + MES",500000]
["F2","Maîtrise d'Œuvre globale (personnel équipe construction + MES)","Suivi fabrication, montage et mise en service chantier global",500000]
["F3","Dossiers d'autorisation","Etudes et préparation de dossiers réglementaires (ICPE, …), permis de construire, etc.",100000]
["F4","Autres","Préciser ici",0]
["Poste G","Divers",null,{"$f":"SUM(D48:D49)","v":500000},{"$f":"D47/$D$50","v":2.0964360587002098E-2},null,null,{"$f":"SUM(H48:H49)","v":0},{"$f":"SUM(I48:I49)","v":0},0,0,0,0,0,0,0,0,0,0,0,0,0,0,0,0,0,0]
["G1","Aléas",null,500000,{"$f":"D48/D50","v":2.0964360587002098E-2}]
["G2","Autres","Préciser ici",0]
["TOTAL CAPEX",null,null,{"$f":"D13+D19+D23+D30+D35+D42+D47","v":23850000},null,null,null,{"$f":"H13+H19+H23+H30+H35+H42+H47","v":0},{"$f":"I13+I19+I23+I30+I35+I42+I47","v":0},{"$f":"J13+J19+J23+J30+J35+J42+J47","v":0},{"$f":"K13+K19+K23+K30+K35+K42+K47","v":0},{"$f":"L13+L19+L23+L30+L35+L42+L47","v":0},{"$f":"M13+M19+M23+M30+M35+M42+M47","v":0},{"$f":"N13+N19+N23+N30+N35+N42+N47","v":0},{"$f":"O13+O19+O23+O30+O35+O42+O47","v":0},{"$f":"P13+P19+P23+P30+P35+P42+P47","v":0},{"$f":"Q13+Q19+Q23+Q30+Q35+Q42+Q47","v":0},{"$f":"R13+R19+R23+R30+R35+R42+R47","v":0},{"$f":"S13+S19+S23+S30+S35+S42+S47","v":0},{"$f":"T13+T19+T23+T30+T35+T42+T47","v":0},{"$f":"U13+U19+U23+U30+U35+U42+U47","v":0},{"$f":"V13+V19+V23+V30+V35+V42+V47","v":0},{"$f":"W13+W19+W23+W30+W35+W42+W47","v":0},{"$f":"X13+X19+X23+X30+X35+X42+X47","v":0},{"$f":"Y13+Y19+Y23+Y30+Y35+Y42+Y47","v":0},{"$f":"Z13+Z19+Z23+Z30+Z35+Z42+Z47","v":0},{"$f":"AA13+AA19+AA23+AA30+AA35+AA42+AA47","v":0}]
[]
["Financement global du projet"]
["Nom",null,"Définition","Valeur"]
[null,"Apport en fonds propres","Montant autofinancé",500000,{"$f":"D54/$D$50","v":2.0964360587002098E-2}]
[null,"Apport en dette","Montant emprunté",500000,{"$f":"D55/$D$50","v":2.0964360587002098E-2}]
[null,"Apport en subventions","Montant des subventions à l'investissement envisagé",500000,2.0964360587002098E-2]
[null,"Autre source de financement","Préciser ici",500000,2.0964360587002098E-2]
[]
["Ramp-up"]
["Nom",null,"Définition",null,null,null,null,"ANNEE 1","ANNEE 2","ANNEE 3","ANNEE 4","ANNEE 5","ANNEE 6","ANNEE 7","ANNEE 8","ANNEE 9","ANNEE 10","ANNEE 11","ANNEE 12","ANNEE 13","ANNEE 14","ANNEE 15","ANNEE 16","ANNEE 17","ANNEE 18","ANNEE 19","ANNEE 20"]
[null,"Taux de charge","Pourcentage de la capacité nominale année par année",null,null,null,null,0,0,0,0,0,0,0,0,0,0,0,0,0,0,0,0,0,0,0,0]
[null,"Nombre d'heures","Nombre d'heures de fonctionnement année par année",null,null,null,null,0,0,0,0,0,0,0,0,0,0,0,0,0,0,0,0,0,0,0,0]
[]
["Ventilation des produits",null,null,"Valeurs nominales"]
["code","Nom","Définition","Quantitatif","Prix unitaire","Taux inflation",null,"ANNEE 1","ANNEE 2","ANNEE 3","ANNEE 4","ANNEE 5","ANNEE 6","ANNEE 7","ANNEE 8","ANNEE 9","ANNEE 10","ANNEE 11","ANNEE 12","ANNEE 13","ANNEE 14","ANNEE 15","ANNEE 16","ANNEE 17","ANNEE 18","ANNEE 19","ANNEE 20"]
["P1","Méthane de synthèse (gaz renouvelable, bas-carbone ou récupération) conforme injecté ","Quantitatif en MWh_PCS par an et prix unitaire évalué par le porteur de projet",1000,100,0]
["P2","Chaleur (s'il y en a un surplus à récupérer)","Quantitatif en MWh par an et prix unitaire évalué par le porteur de projet",1000,100,0]
["P3","CO2","Quantitatif en tonne par an et prix unitaire évalué par le porteur de projet",100,3000,0]
["P4","H2","Quantitatif en tonne par an et prix unitaire évalué par le porteur de projet",100,3000,0]
["P5","Résidu solide (minéraux, métaux)","Quantitatif en tonne par an et prix unitaire évalué par le porteur de projet",100,50,0]
["P6-A","Résidu liquide (avec ou sans azote) ","Quantitatif en m3 par an et prix unitaire évalué par le porteur de projet",100,10,0]
["P6-B","Résidu azote (si séparation)","Quantitatif en tonne par an et prix unitaire évalué par le porteur de projet",100,25,0]
["P7","Redevance intrant","Quantitatif en tonne par an et prix unitaire évalué par le porteur de projet. Si l'intrant représente une charge se référer à la ligne CV1",100,10,0]
["P8","Autre","Préciser ici ",12,10,0]
["TOTAL PRODUITS",null,null,null,null,null,null,{"$f":"SUM(H66:H74)","v":0},{"$f":"SUM(I66:I74)","v":0},0,0,0,0,0,0,0,0,0,0,0,0,0,0,0,0,0,0]
[]
["Ventilation des charges d'exploitation",null,null,"Valeurs nominales"]
["code","Nom","Définition","Quantitatif","Prix unitaire","Taux inflation",null,"ANNEE 1","ANNEE 2","ANNEE 3","ANNEE 4","ANNEE 5","ANNEE 6","ANNEE 7","ANNEE 8","ANNEE 9","ANNEE 10","ANNEE 11","ANNEE 12","ANNEE 13","ANNEE 14","ANNEE 15","ANNEE 16","ANNEE 17","ANNEE 18","ANNEE 19","ANNEE 20"]
["CF1","Maintenance","Coût de maintenance annuel",null,null,0]
["CF2","Main d'œuvre opérationnelle","Coût de suivi opérationnel (à distance ou in situ)",null,null,null,null,{"$f":"SUM(H81:H82)","v":0},{"$f":"SUM(I81:I82)","v":0},0,0,0,0,0,0,0,0,0,0,0,0,0,0,0,0,0,0]
["CF2.1","Cadre","Coût annuel et nombre d'ETP niveau cadre envisagés",1,45000,0]
["CF2.2","Technicien (habilité haute pression gaz, électricité, etc.)","Coût annuel et nombre d'ETP niveau technicien envisagés",1,35000,0]
["CF3","Service d'injection méthane de synthèse","Coût annuel inhérant aux services d'injection dans le réseau (timbre + location du poste)",1,100,0]
["CF4","Location du foncier","Coût annuel lié à la location du foncier le cas échéant",null,null,0]
["CF5","Autres charges fixes","Assurances, contrôles réglementaires, frais de gestion annuels, licence et suivi d'exploitation, etc.",null,null,0]
["CV1","Intrant (matière brute)","Quantitatif  en tonnes matière brute par an et prix unitaire (prévoir une ligne par typologie intrant)",null,null,null,null,{"$f":"SUM(H87:H90)","v":0},{"$f":"SUM(I87:I90)","v":0},0,0,0,0,0,0,0,0,0,0,0,0,0,0,0,0,0,0]
["CV1.1","Intrant 1 (matière brute)","Coût évalué par le porteur de projet selon son PA",1,50,0]
["CV1.2","Intrant 2 (matière brute)","Coût évalué par le porteur de projet selon son PA",1,50,0]
["CV2","Electricité","Quantitatif en MWh/an et prix unitaire évalué par le porteur de projet",1000,100,0]
["CV3","Eau du réseau","Quantitatif en m³/an et prix unitaire évalué par le porteur de projet",100,3,0]
["CV4","Consommables","Possibilité d'agréger l'ensemble des consommables process dans \"autres consommables\"",null,null,null,null,{"$f":"SUM(H93:H96)","v":0},0,0,0,0,0,0,0,0,0,0,0,0,0,0,0,0,0,0,0]
["CV4.1","Consommables spécifiques au pré-traitement","Coût évalué par le porteur de projet",1,1000,0]
["CV4.2","Consommables spécifiques à la gazéification (ex: catalyseur, etc.)","Coût évalué par le porteur de projet",1,1000,0]
["CV4.3","Consommables spécifiques au traitement de syngaz (ex: catalyseur, etc.)","Coût évalué par le porteur de projet",1,1000,0]
["CV4.4","Consommables spécifiques à l'épuration","Coût évalué par le porteur de projet",1,1000,0]
["CV4.5","Autres consommables","Autre consommable à préciser ici",1,1000,0]
["CV5","Rejets",null,null,null,null,null,{"$f":"SUM(H98:H99)","v":0},0,0,0,0,0,0,0,0,0,0,0,0,0,0,0,0,0,0,0]
["CV5.1","Autres rejets solides","Quantitatif en tonne par an et prix unitaire évalué par le porteur de projet",15000,50,0]
["CV5.2","Autres rejets liquides","Quantitatif en m³ par an et prix unitaire évalué par le porteur de projet",100,3,0]
["CV7","Aléas",null,null,null,0]
["CV8","Autres","Préciser ici",null,null,0]
["TOTAL OPEX",null,null,null,null,null,null,{"$f":"H79+SUM(H81:H85)+SUM(H87:H90)+SUM(H93:H96)+SUM(H98:H101)","v":0},0,0,0,0,0,0,0,0,0,0,0,0,0,0,0,0,0,0,0]
[]
["Amortissements ",null,null,null,null,null,null,"ANNEE 1","ANNEE 2","ANNEE 3","ANNEE 4","ANNEE 5","ANNEE 6","ANNEE 7","ANNEE 8","ANNEE 9","ANNEE 10","ANNEE 11","ANNEE 12","ANNEE 13","ANNEE 14","ANNEE 15","ANNEE 16","ANNEE 17","ANNEE 18","ANNEE 19","ANNEE 20"]
[null,"Durée ",null,10]
[null,"Type d'amortissement",null,"Linéaire"]
[null,"Dotations aux armotissements","Année par année"]
[null,"Autres","Année par année"]
[]
["Dettes",null,null,null,null,null,null,"ANNEE 1","ANNEE 2","ANNEE 3","ANNEE 4","ANNEE 5","ANNEE 6","ANNEE 7","ANNEE 8","ANNEE 9","ANNEE 10","ANNEE 11","ANNEE 12","ANNEE 13","ANNEE 14","ANNEE 15","ANNEE 16","ANNEE 17","ANNEE 18","ANNEE 19","ANNEE 20"]
[null,"Taux d'emprunt","Taux d'intérêt bancaire pour la part de l'investissement empruntée",0.02]
[null,"Durée d'emprunt","Durée de l'emprunt bancaire",10]
[null,"Annuité"]
[null,"Dont capital"]
[null,"Dont intérêts"]
[]
["Impôts et taxes (non obligatoire si inconnus)",null,null,null,null,null,null,"ANNEE 1","ANNEE 2","ANNEE 3","ANNEE 4","ANNEE 5","ANNEE 6","ANNEE 7","ANNEE 8","ANNEE 9","ANNEE 10","ANNEE 11","ANNEE 12","ANNEE 13","ANNEE 14","ANNEE 15","ANNEE 16","ANNEE 17","ANNEE 18","ANNEE 19","ANNEE 20"]
[null,"Impôts, taxes et versements (ITVA)",null,null,null,null,null,{"$f":"SUM(H119:H123)","v":0},{"$f":"SUM(I119:I123)","v":0},0,0,0,0,0,0,0,0,0,0,0,0,0,0,0,0,0,0]
[null,"CFE"]
[null,"CVAE"]
[null,"TACVAE"]
[null,"Frais de gestion"]
[null,"Autres taxes"]
[null,"Impôt sur les sociétés (IS)","Indiquer si la structure juridique est soumise ou non à l'IS. Ventiler par année si calculé.","Soumis"]

{"sheet":"Note_explicative_BP","index":1,"n_rows":45,"n_cols":5,"rows_kept":45,"cut":false,"hidden":false,"merged":[[12,7,12,8],[33,3,33,4],[37,3,37,4],[41,3,41,4],[13,3,13,4],[17,3,17,4],[21,3,21,4],[25,3,25,4],[29,3,29,4],[26,4,28,4],[30,4,32,4],[34,4,36,4],[38,4,40,4],[42,4,44,4],[25,1,29,1],[14,4,16,4],[18,4,20,4],[22,4,24,4],[13,1,16,1],[19,1,22,1],[32,1,35,1],[38,1,41,1]]}
[]
[null,"Porteur de projet","Version vF"]
[null,"Nom du projet","Version vF"]
[null,"Capacité injection gaz conforme",500]
[null,"CAPEX",{"$f":"D48","v":0}]
[null,"TRI projet cible",0.08]
[null,"Prix du méthane de synthèse cible",100]
[]
[null,"Cellules à renseigner"]
[]
[]
[]
[null,"Situation de référence",null,"Hypothèses prises","Commentaires"]
[null,"Traitement des déchets actuel, approvisionnement en énergie...",null,"1) Détail CAPEX"]
[null,null,null,"Hypothèse","Préciser ici"]
[null,null,null,"Hypothèse"]
[null,null,null,"Hypothèse"]
[null,null,null,"2) Détail Ressources"]
[null,"Explication prix du méthane de synthèse cible",null,"Hypothèse","Préciser ici"]
[null,"Préciser la part de subvention visée pour completer l'écart entre le prix de marché du gaz et le prix du syngaz",null,"Hypothèse"]
[null,null,null,"Hypothèse"]
[null,null,null,"3) Détail Ramp Up"]
[null,null,null,"Hypothèse","Préciser ici"]
[null,null,null,"Hypothèse"]
[null,"Explication montage subventions",null,"Hypothèse"]
[null,"Demandes de subventions\nRépartition CAPEX/OPEX...\n",null,"4) Détail OPEX"]
[null,null,null,"Hypothèse","Préciser ici"]
[null,null,null,"Hypothèse"]
[null,null,null,"Hypothèse"]
[null,null,null,"5) Détail ventalilation produits"]
[null,null,null,"Hypothèse","Préciser ici"]
[null,"Explication cible TRI",null,"Hypothèse"]
[null,"Taux d'actualisation….",null,"Hypothèse"]
[null,null,null,"6) Détail ventalilation charges d'exploitation"]
[null,null,null,"Hypothèse","Préciser ici"]
[null,null,null,"Hypothèse"]
[null,null,null,"Hypothèse"]
[null,"Autres précisions",null,"7) Détail Amortissements"]
[null,"Préciser ici",null,"Hypothèse","Préciser ici"]
[null,null,null,"Hypothèse"]
[null,null,null,"Hypothèse"]
[null,null,null,"8) Détail Dettes"]
[null,null,null,"Hypothèse","Préciser ici"]
[null,null,null,"Hypothèse"]
[null,null,null,"Hypothèse"]